bitfinex-derivatives/quotes_ETHF0:USTF0_20230104
["timestamp","ask_amount","ask_price","bid_price","bid_amount"]
[1672857576964,1.581,1265.2,1265.0,9.09068373]
[1672857577386,2.5,1265.1,1265.0,1.17468373]
[1672857578127,2.5,1265.1,1264.9,7.52410969]
[1672857578334,2.5,1265.1,1265.0,1.17468373]
[1672857579177,2.5,1265.1,1265.0,4.50980969]
[1672857580226,1.581,1265.3,1265.0,4.50980969]
[1672857580641,1.581,1265.3,1265.1,3.0073]
[1672857581798,1.574,1265.3,1265.1,3.0073]
[1672857582211,1.574,1265.3,1265.0,4.51380969]
[1672857582429,1.574,1265.3,1265.0,2.74768373]
[1672857583485,1.574,1265.3,1265.0,4.51380969]
[1672857583898,1.574,1265.3,1265.0,12.42980969]
[1672857584223,7.63890578,1265.4,1265.1,4.5893]
[1672857586745,11.78745488,1265.4,1265.1,1.582]
[1672857586957,6.56420578,1265.3,1265.1,1.582]
[1672857588105,3.0073,1265.3,1265.1,1.582]
[1672857591898,6.56420578,1265.3,1265.1,1.582]
[1672857592631,3.0073,1265.3,1265.1,1.582]
[1672857593042,11.78745488,1265.4,1265.1,1.582]
[1672857593253,7.63890578,1265.4,1265.1,1.582]
[1672857594626,7.63890578,1265.4,1265.1,3.0073]
[1672857594837,7.63890578,1265.4,1265.1,4.18198373]
[1672857595035,4.082,1265.4,1265.1,4.18198373]
[1672857595675,4.082,1265.4,1265.1,5.94810969]
[1672857595876,6.63890578,1265.5,1265.2,2.75668373]
[1672857596091,6.63890578,1265.5,1265.3,3.0073]
[1672857596092,3.082,1265.5,1265.3,3.0073]
[1672857596519,6.63890578,1265.5,1265.3,3.0073]
[1672857596733,3.082,1265.5,1265.3,3.0073]
[1672857597455,1.5,1265.5,1265.4,1.573]
[1672857597671,6.05690578,1265.6,1265.4,1.573]
[1672857598190,1.5,1265.5,1265.4,1.573]
[1672857599987,5.05690578,1265.5,1265.4,1.573]
[1672857601344,5.05690578,1265.5,1265.4,1.581]
[1672857601345,8.06420578,1265.5,1265.4,1.581]
[1672857604398,1.5,1265.5,1265.4,1.581]
[1672857604817,6.05690578,1265.6,1265.4,1.581]
[1672857605029,6.05690578,1265.6,1265.5,1.581]
[1672857607866,6.05690578,1265.6,1265.5,1.577]
[1672857608080,3.55690578,1265.6,1265.5,1.577]
[1672857608284,13.21275488,1265.7,1265.5,1.577]
[1672857608707,9.06420578,1265.7,1265.5,1.577]
[1672857608911,13.21275488,1265.7,1265.5,1.577]
[1672857609122,9.06420578,1265.7,1265.5,1.577]
[1672857609333,9.06420578,1265.7,1265.5,4.5843]
[1672857609546,13.21275488,1265.7,1265.5,4.5843]
[1672857609861,10.71275488,1265.7,1265.5,12.5003]
[1672857610076,7.82580578,1265.9,1265.6,12.25268373]
[1672857610274,8.81645488,1266.0,1265.8,1.575]
[1672857610487,11.31645488,1266.0,1265.9,1.567]
[1672857610918,7.16790578,1266.0,1265.8,1.572]
[1672857611235,2.5,1265.9,1265.8,1.572]
[1672857612804,2.5,1265.9,1265.8,1.58]
[1672857613010,5.5073,1265.9,1265.5,18.1467]
[1672857613224,2.5,1265.9,1265.5,16.9653]
[1672857613751,9.06420578,1265.9,1265.5,16.9653]
[1672857614379,10.63720578,1265.9,1265.6,1.58]
[1672857614589,7.0803,1265.9,1265.6,1.58]
[1672857619527,4.073,1265.9,1265.6,1.58]
[1672857621108,4.073,1265.9,1265.7,3.0073]
[1672857622478,2.5,1265.9,1265.8,1.58]
[1672857625212,3.611,1266.0,1265.8,1.58]
[1672857628060,6.6183,1266.0,1265.8,1.58]
[1672857629110,10.17520578,1266.0,1265.8,1.58]
[1672857629837,6.6183,1266.0,1265.8,1.58]
[1672857632470,10.17520578,1266.0,1265.8,1.58]
[1672857633211,6.6183,1266.0,1265.8,1.58]
[1672857633411,3.611,1266.0,1265.8,1.58]
[1672857637509,7.16790578,1266.0,1265.8,1.58]
[1672857638678,1.111,1266.0,1265.9,4.5873]
[1672857639094,1.111,1266.0,1265.9,12.5033]
[1672857642141,1.111,1266.0,1265.9,4.5873]
[1672857642782,1.111,1266.0,1265.9,4.5843]
[1672857642980,1.111,1266.0,1265.7,4.18198373]
[1672857643193,7.1983,1266.0,1265.8,1.565]
[1672857645093,4.191,1266.0,1265.8,1.565]
[1672857645515,7.1983,1266.0,1265.8,1.565]
[1672857645725,10.75520578,1266.0,1265.8,1.565]
[1672857648146,7.1983,1266.0,1265.8,1.565]
[1672857648774,10.75520578,1266.0,1265.8,1.565]
[1672857649711,4.191,1266.0,1265.8,1.565]
[1672857651503,7.74790578,1266.0,1265.8,1.565]
[1672857651714,7.74790578,1266.0,1265.7,5.76298373]
[1672857651932,6.16790578,1266.0,1265.7,5.76298373]
[1672857652980,9.17520578,1266.0,1265.7,5.76298373]
[1672857653404,9.17520578,1266.0,1265.7,4.5883]
[1672857653603,13.32375488,1266.0,1265.7,1.581]
[1672857653810,13.32375488,1266.0,1265.6,0.00080969]
[1672857653811,12.4933,1265.8,1265.6,0.00080969]
[1672857654023,1.581,1265.7,1265.5,13.958]
[1672857654235,2.5,1265.6,1265.3,14.85913462]
[1672857654973,2.5,1265.6,1265.3,6.94313462]
[1672857656656,5.5073,1265.6,1265.3,4.5883]
[1672857658025,2.5,1265.6,1265.3,6.94313462]
[1672857658440,2.5,1265.6,1265.3,4.5883]
[1672857658648,1.57,1265.5,1265.2,17.87783462]
[1672857658857,1.581,1265.4,1265.2,2.35483462]
[1672857660334,1.581,1265.4,1265.1,11.06807789]
[1672857660545,1.581,1265.4,1265.1,8.12453462]
[1672857661492,1.581,1265.4,1265.1,11.06807789]
[1672857661703,1.581,1265.4,1265.1,6.94313462]
[1672857661913,1.581,1265.4,1265.1,4.5883]
[1672857662545,1.581,1265.4,1265.1,6.94313462]
[1672857662963,1.581,1265.4,1265.1,4.5883]
[1672857663174,1.581,1265.4,1265.1,6.94313462]
[1672857663701,1.581,1265.4,1265.1,4.5883]
[1672857664223,4.5883,1265.4,1265.1,1.581]
[1672857664435,1.5,1265.3,1265.1,1.581]
[1672857668008,3.0073,1265.2,1265.1,1.581]
[1672857669692,4.5883,1265.2,1264.9,4.5843]
[1672857670843,4.5883,1265.2,1264.9,1.577]
[1672857671053,1.568,1265.1,1264.8,1.581]
[1672857679040,3.0073,1265.0,1264.8,1.581]
[1672857681142,4.5883,1265.0,1264.7,4.5813]
[1672857681566,2.5,1264.9,1264.7,4.5813]
[1672857682710,1.581,1265.0,1264.7,4.5813]
[1672857685128,4.5883,1265.0,1264.7,4.5813]
[1672857685339,4.5883,1265.0,1264.7,1.574]
[1672857686709,1.581,1265.0,1264.7,1.574]
[1672857688485,3.0073,1264.9,1264.7,1.574]
[1672857689121,2.5,1264.8,1264.7,1.574]
[1672857693016,4.081,1264.8,1264.5,16.31283462]
[1672857693224,4.081,1264.8,1264.5,2.35483462]
[1672857693442,3.0073,1264.7,1264.5,2.35483462]
[1672857693646,3.0073,1264.7,1264.4,9.88667789]
[1672857693962,1.572,1264.6,1264.4,5.36213462]
[1672857694165,1.581,1264.5,1264.3,2.35483462]
[1672857694387,1.581,1264.5,1264.3,3.75642967]
[1672857694808,1.581,1264.5,1264.3,2.35483462]
[1672857695019,1.581,1264.5,1264.3,3.7564438]
[1672857696069,4.5883,1264.7,1264.5,0.31145239]
[1672857696278,2.5,1264.6,1264.5,0.31145239]
[1672857698907,4.5883,1264.7,1264.5,0.31145239]
[1672857699331,2.5,1264.6,1264.5,0.31145239]
[1672857704887,4.5883,1264.7,1264.5,0.31145239]
[1672857705532,3.162,1264.6,1264.5,0.31145239]
[1672857705747,5.662,1264.6,1264.5,0.31145239]
[1672857708586,13.578,1264.6,1264.5,0.21925239]
[1672857709955,1.5,1264.5,1264.1,2.35483462]
[1672857710266,1.581,1264.4,1264.1,2.35483462]
[1672857711947,1.581,1264.4,1264.0,11.95007789]
[1672857712160,1.581,1264.4,1264.0,9.00653462]
[1672857713428,1.581,1264.4,1264.0,11.95007789]
[1672857713737,1.581,1264.4,1264.1,2.35483462]
[1672857713944,1.581,1264.4,1264.1,1.76151145]
[1672857714994,1.581,1264.4,1264.1,4.11634607]
[1672857715309,1.581,1264.4,1264.2,1.76151145]
[1672857715730,6.0793,1264.5,1264.2,6.34981145]
[1672857716149,4.5793,1264.5,1264.2,6.34981145]
[1672857716364,4.5753,1264.7,1264.4,1.569]
[1672857716577,4.5753,1264.7,1264.4,4.5763]
[1672857716786,1.568,1264.7,1264.4,4.5763]
[1672857718368,1.568,1264.7,1264.4,6.33781145]
[1672857718579,4.5753,1264.7,1264.4,4.5763]
[1672857718791,2.5,1264.6,1264.4,4.5763]
[1672857720582,4.081,1264.6,1264.3,3.34251145]
[1672857722370,4.081,1264.6,1264.3,5.69734607]
[1672857722569,4.081,1264.6,1264.4,1.76151145]
[1672857723208,4.081,1264.6,1264.4,4.76881145]
[1672857723723,4.081,1264.6,1264.4,1.76151145]
[1672857724048,4.081,1264.6,1264.3,3.34251145]
[1672857725930,4.081,1264.6,1264.3,5.69734607]
[1672857726563,4.081,1264.6,1264.4,1.76151145]
[1672857727413,4.081,1264.6,1264.3,5.69734607]
[1672857727726,4.081,1264.6,1264.4,1.76151145]
[1672857728039,4.081,1264.6,1264.3,5.69734607]
[1672857729087,4.081,1264.6,1264.4,1.76151145]
[1672857729305,4.081,1264.6,1264.3,5.69734607]
[1672857731295,4.081,1264.6,1264.3,3.34251145]
[1672857731610,11.997,1264.6,1264.4,1.76151145]
[1672857733823,15.0043,1264.6,1264.4,1.76151145]
[1672857740666,1.581,1264.6,1264.4,1.76151145]
[1672857740863,1.581,1264.6,1264.4,4.11634607]
[1672857741073,1.581,1264.6,1264.5,1.76151145]
[1672857742553,1.581,1264.6,1264.4,4.11634607]
[1672857743182,1.581,1264.6,1264.5,1.76151145]
[1672857743399,15.0043,1264.8,1264.5,1.76151145]
[1672857743598,18.56120578,1264.8,1264.5,1.76151145]
[1672857743809,10.64520578,1264.8,1264.5,4.11634607]
[1672857744019,7.0883,1264.8,1264.5,4.11634607]
[1672857744337,2.96168222,1264.7,1264.5,1.76151145]
[1672857744543,1.5,1264.6,1264.5,1.76151145]
[1672857745387,1.5,1264.6,1264.5,4.11634607]
[1672857745602,1.5,1264.6,1264.5,1.76151145]
[1672857746961,10.64520578,1264.8,1264.5,1.76151145]
[1672857747173,7.0883,1264.8,1264.5,1.76151145]
[1672857749276,10.64520578,1264.8,1264.5,1.76151145]
[1672857749594,2.96091452,1264.7,1264.5,1.76151145]
[1672857749803,1.5,1264.6,1264.5,1.76151145]
[1672857751288,2.96091452,1264.7,1264.5,1.76151145]
[1672857752445,4.46091452,1264.6,1264.5,1.76151145]
[1672857753284,7.46821452,1264.6,1264.4,5.69734607]
[1672857753497,9.04921452,1264.6,1264.4,1.76151145]
[1672857753701,2.96091452,1264.5,1264.4,1.76151145]
[1672857758642,1.567,1264.5,1264.3,1.76151145]
[1672857758848,2.9632224,1264.4,1264.3,1.76151145]
[1672857759481,2.9632224,1264.4,1264.3,4.11634607]
[1672857759798,4.5302224,1264.5,1264.3,4.11634607]
[1672857760219,4.5302224,1264.5,1264.3,1.76151145]
[1672857760429,4.5302224,1264.5,1264.3,4.11634607]
[1672857760952,4.5302224,1264.5,1264.3,1.76151145]
[1672857761164,5.9705224,1264.4,1264.3,1.76151145]
[1672857763052,4.5302224,1264.5,1264.3,1.76151145]
[1672857763263,4.5302224,1264.5,1264.3,4.11634607]
[1672857763479,4.5302224,1264.5,1264.3,1.76151145]
[1672857765368,4.5302224,1264.5,1264.3,4.11634607]
[1672857765792,4.5302224,1264.5,1264.3,1.76151145]
[1672857773140,1.567,1264.5,1264.4,1.76151145]
[1672857773986,1.567,1264.5,1264.4,2.93968351]
[1672857774300,4.5302224,1264.5,1264.4,1.17817206]
[1672857774512,4.5302224,1264.5,1264.3,1.76151145]
[1672857774513,4.5302224,1264.5,1264.3,2.93968351]
[1672857774928,4.5302224,1264.5,1264.4,1.17817206]
[1672857775143,4.5302224,1264.5,1264.3,2.93968351]
[1672857776931,7.5375224,1264.5,1264.3,2.93968351]
[1672857777563,4.5302224,1264.5,1264.3,2.93968351]
[1672857777873,7.5375224,1264.5,1264.3,2.93968351]
[1672857780398,7.5375224,1264.5,1264.3,1.17817206]
[1672857780601,2.9632224,1264.4,1264.3,1.17817206]
[1672857781021,2.5,1264.4,1264.3,1.17817206]
[1672857781232,2.5,1264.4,1264.3,2.93968351]
[1672857781448,5.4632224,1264.4,1264.3,1.17817206]
[1672857782393,5.4632224,1264.4,1264.2,4.50668351]
[1672857782810,5.9705224,1264.3,1264.2,1.17817206]
[1672857788383,5.9705224,1264.3,1264.2,1.17062925]
[1672857788588,5.9705224,1264.3,1264.1,1.76151145]
[1672857788803,2.5,1264.2,1264.0,6.17974607]
[1672857790058,2.5,1264.2,1264.1,1.76151145]
[1672857790269,2.5,1264.2,1264.0,6.17974607]
[1672857791317,5.5073,1264.2,1264.1,1.76151145]
[1672857791638,5.5073,1264.2,1264.0,6.17974607]
[1672857792165,5.5073,1264.2,1264.1,1.76151145]
[1672857792690,5.5073,1264.2,1264.0,6.17974607]
[1672857794052,5.5073,1264.2,1264.0,3.82491145]
[1672857794270,1.572,1264.1,1264.0,3.82491145]
[1672857795423,1.56776299,1264.1,1264.0,3.82491145]
[1672857796258,4.57506299,1264.1,1264.0,3.82491145]
[1672857798571,4.57506299,1264.1,1264.0,2.0634]
[1672857798991,1.1814,1264.0,1263.8,1.76151145]
[1672857799311,6.1733,1263.9,1263.7,4.11634607]
[1672857799518,4.074,1263.8,1263.7,1.76151145]
[1672857800364,1.574,1263.8,1263.7,4.11634607]
[1672857800573,4.074,1263.8,1263.7,1.76151145]
[1672857802462,6.0903,1263.9,1263.7,5.36213462]
[1672857802463,1.567,1263.9,1263.7,5.36213462]
[1672857802672,4.073,1264.0,1263.8,1.76556037]
[1672857803508,8.96976607,1264.3,1263.9,8.70069499]
[1672857803708,8.96976607,1264.3,1264.0,1.567]
[1672857803709,7.53396607,1264.3,1264.0,1.567]
[1672857803929,2.5,1264.2,1264.0,1.567]
[1672857804343,2.5,1264.2,1264.0,3.33256037]
[1672857804553,6.0743,1264.3,1264.0,3.33256037]
[1672857804768,3.067,1264.3,1264.0,3.33256037]
[1672857806660,3.067,1264.3,1264.0,5.68739499]
[1672857806974,3.067,1264.3,1264.0,3.33256037]
[1672857807186,3.067,1264.3,1264.0,5.68739499]
[1672857807502,7.54996607,1264.5,1264.2,3.162]
[1672857807918,10.04996607,1264.5,1264.2,3.162]
[1672857808338,10.04996607,1264.5,1264.2,4.92756037]
[1672857808543,10.04996607,1264.5,1264.2,3.162]
[1672857808757,10.04996607,1264.5,1264.2,4.92756037]
[1672857808968,1.5,1264.4,1264.2,4.92756037]
[1672857809181,1.5,1264.4,1264.2,3.162]
[1672857810022,4.45966607,1264.4,1264.2,3.162]
[1672857810231,6.03966607,1264.4,1264.2,1.583]
[1672857810658,1.574,1264.3,1264.1,4.77286037]
[1672857811293,6.02666607,1264.4,1264.1,6.35586037]
[1672857811704,3.067,1264.4,1264.1,6.35586037]
[1672857812130,6.02666607,1264.4,1264.1,6.35586037]
[1672857812545,6.03066607,1264.4,1264.1,4.77286037]
[1672857813188,1.573,1264.2,1264.0,4.12039499]
[1672857813394,1.573,1264.2,1264.0,1.76556037]
[1672857814018,1.573,1264.2,1263.9,7.12769499]
[1672857814228,4.53266607,1264.2,1263.9,4.77286037]
[1672857814761,4.53266607,1264.2,1263.9,7.12769499]
[1672857817601,4.53266607,1264.2,1264.0,1.76556037]
[1672857817911,4.53266607,1264.2,1263.9,1.76556037]
[1672857817912,1.583,1264.1,1263.9,1.76556037]
[1672857818539,7.54996607,1264.1,1263.8,4.12039499]
[1672857818748,4.08,1264.0,1263.8,4.12039499]
[1672857819381,4.08,1264.0,1263.9,1.76556037]
[1672857823590,7.03066607,1264.0,1263.8,1.76556037]
[1672857823797,1.583,1263.9,1263.8,1.76556037]
[1672857824219,1.583,1263.9,1263.8,4.12039499]
[1672857824431,1.583,1263.9,1263.8,1.76556037]
[1672857824634,4.073,1264.0,1263.8,4.12039499]
[1672857825270,4.073,1264.0,1263.9,1.76556037]
[1672857825483,4.073,1264.0,1263.8,4.12039499]
[1672857826112,4.073,1264.0,1263.9,1.76556037]
[1672857826323,1.573,1264.0,1263.9,1.76556037]
[1672857829268,4.073,1264.0,1263.9,1.76556037]
[1672857829690,1.573,1264.0,1263.9,1.76556037]
[1672857830321,1.573,1264.0,1263.8,4.12039499]
[1672857831268,1.573,1264.0,1263.9,1.76556037]
[1672857832842,1.573,1264.0,1263.8,7.12769499]
[1672857835469,1.573,1264.0,1263.9,1.76556037]
[1672857839988,2.5,1264.1,1263.9,1.76556037]
[1672857840199,10.04996607,1264.2,1263.9,1.76556037]
[1672857840828,2.5,1264.1,1263.9,1.76556037]
[1672857841251,2.5,1264.1,1263.9,1.06556037]
[1672857841565,5.45966607,1264.1,1263.9,1.06556037]
[1672857843768,2.5,1264.1,1263.9,1.06556037]
[1672857843979,5.45966607,1264.1,1263.9,1.06556037]
[1672857844193,2.5,1264.1,1263.9,1.06556037]
[1672857846286,5.45966607,1264.1,1263.9,1.06556037]
[1672857846711,5.45966607,1264.1,1263.8,6.94513462]
[1672857847018,7.04266607,1264.1,1263.8,6.94513462]
[1672857847858,5.45966607,1264.1,1263.8,5.36213462]
[1672857849030,2.95966607,1264.1,1263.8,8.30567789]
[1672857849243,2.95966607,1264.1,1263.9,2.35483462]
[1672857849451,1.58,1264.0,1263.9,2.35483462]
[1672857850497,1.58,1264.0,1263.9,3.75699451]
[1672857850707,1.58,1264.0,1263.9,2.35483462]
[1672857851128,1.58,1264.0,1263.9,3.75699941]
[1672857852491,1.58,1264.0,1263.9,6.70054268]
[1672857852700,1.58,1264.0,1263.9,3.75699941]
[1672857854181,4.53966607,1264.0,1263.8,8.30567789]
[1672857854394,4.53966607,1264.0,1263.8,5.36213462]
[1672857854593,4.53966607,1264.0,1263.8,8.30567789]
[1672857855013,4.53966607,1264.0,1263.8,5.36213462]
[1672857855542,4.53966607,1264.0,1263.8,2.35483462]
[1672857856068,4.53966607,1264.0,1263.8,6.70066884]
[1672857857333,4.53966607,1264.0,1263.9,2.35483462]
[1672857859640,4.53966607,1264.0,1263.8,5.29837789]
[1672857859851,4.53966607,1264.0,1263.8,6.70066313]
[1672857862593,4.54266607,1263.9,1263.8,2.35483462]
[1672857862796,4.54266607,1263.9,1263.7,5.29837789]
[1672857863006,1.583,1263.8,1263.7,2.35483462]
[1672857867422,1.583,1263.8,1263.7,5.36213462]
[1672857867635,1.583,1263.9,1263.7,7.35325511]
[1672857867847,3.083,1263.9,1263.8,3.76282124]
[1672857868048,1.583,1263.9,1263.8,3.76282124]
[1672857870262,1.583,1263.9,1263.8,3.76269114]
[1672857870465,1.583,1263.9,1263.8,6.70623441]
[1672857870880,1.583,1263.9,1263.8,3.76269114]
[1672857871094,1.583,1263.9,1263.8,6.70623441]
[1672857871830,1.583,1263.9,1263.8,6.70566611]
[1672857872043,1.583,1263.9,1263.8,4.34582501]
[1672857873303,1.583,1263.9,1263.8,6.70549317]
[1672857874041,1.583,1263.9,1263.8,3.7619499]
[1672857874567,1.583,1263.9,1263.8,2.35966816]
[1672857876041,1.583,1263.9,1263.8,3.7619366]
[1672857877192,1.583,1263.9,1263.8,4.34581171]
[1672857877613,1.583,1263.9,1263.8,6.70563186]
[1672857877823,1.583,1263.9,1263.8,4.34581171]
[1672857882764,2.95966607,1264.2,1263.9,0.31156815]
[1672857882973,4.1261,1264.3,1264.1,4.5903]
[1672857882974,7.08576607,1264.3,1264.1,4.5903]
[1672857883176,2.95966607,1264.3,1264.1,6.94784365]
[1672857883601,2.95966607,1264.3,1264.1,4.5903]
[1672857886748,7.02866607,1264.4,1264.1,12.5063]
[1672857887388,2.95966607,1264.3,1264.1,12.5063]
[1672857887593,1.5,1264.2,1264.1,4.5903]
[1672857888745,2.95966607,1264.3,1264.1,4.5903]
[1672857894322,7.02866607,1264.4,1264.1,4.5903]
[1672857894531,7.03266607,1264.4,1264.1,4.5903]
[1672857895063,7.03266607,1264.4,1264.1,1.583]
[1672857895277,7.03266607,1264.4,1264.1,4.5903]
[1672857896002,7.03266607,1264.4,1264.1,1.583]
[1672857896211,7.03266607,1264.4,1264.1,4.5903]
[1672857899158,14.94866607,1264.4,1264.1,4.5903]
[1672857899476,1.5,1264.2,1264.1,4.5903]
[1672857900106,3.069,1264.2,1264.1,3.0073]
[1672857901049,3.069,1264.2,1263.9,7.2594118]
[1672857901476,3.069,1264.2,1263.9,6.66682798]
[1672857901889,3.069,1264.2,1263.9,9.02437163]
[1672857902416,7.7363,1264.0,1263.6,2.94692957]
[1672857902623,3.0073,1264.0,1263.6,4.34926543]
[1672857902940,5.96696607,1264.0,1263.6,4.34926543]
[1672857903261,5.96696607,1264.0,1263.5,27.82822957]
[1672857903466,4.072,1263.9,1263.7,1.578]
[1672857904619,1.572,1263.9,1263.7,4.5853]
[1672857906621,1.572,1263.9,1263.7,1.578]
[1672857907161,3.0073,1263.8,1263.7,1.578]
[1672857907772,1.572,1263.9,1263.7,1.578]
[1672857908408,4.072,1263.9,1263.8,1.17779104]
[1672857908824,4.076,1263.9,1263.8,1.17779104]
[1672857909033,4.076,1263.9,1263.7,1.17779104]
[1672857910826,3.0073,1263.8,1263.7,1.17779104]
[1672857911243,7.0833,1263.9,1263.7,1.17779104]
[1672857914604,7.0773,1263.9,1263.7,1.17779104]
[1672857915026,11.082,1263.8,1263.7,1.17779104]
[1672857915236,11.082,1263.8,1263.6,1.17779104]
[1672857915452,4.5903,1263.7,1263.6,1.17779104]
[1672857917443,4.5903,1263.7,1263.5,1.17779104]
[1672857917761,1.578,1263.6,1263.5,1.17779104]
[1672857921861,1.572,1263.6,1263.4,1.17779104]
[1672857922069,1.583,1263.5,1263.4,1.17779104]
[1672857922277,3.083,1263.5,1263.4,1.17779104]
[1672857923548,15.5893,1263.5,1263.3,1.17779104]
[1672857923753,1.572,1263.4,1263.2,1.17779104]
[1672857923964,1.583,1263.3,1263.1,3.0073]
[1672857924174,1.27126781,1263.3,1263.1,18.87022957]
[1672857924385,2.5,1263.4,1263.2,1.40271639]
[1672857924600,3.083,1263.5,1263.3,1.579]
[1672857924601,1.5,1263.5,1263.3,1.579]
[1672857924812,1.5,1263.5,1263.4,1.17534968]
[1672857926912,1.5,1263.5,1263.3,5.76164968]
[1672857928804,4.5073,1263.5,1263.3,2.75434968]
[1672857929017,1.572,1263.4,1263.3,1.17534968]
[1672857931221,1.572,1263.4,1263.2,1.40268403]
[1672857931435,1.572,1263.4,1263.3,3.0073]
[1672857931749,3.083,1263.5,1263.3,3.0073]
[1672857931958,1.583,1263.5,1263.4,1.17495793]
[1672857937835,1.583,1263.5,1263.4,1.17677616]
[1672857940580,1.583,1263.5,1263.3,5.35711391]
[1672857942053,1.583,1263.5,1263.4,2.34981391]
[1672857942260,1.583,1263.5,1263.3,8.30404348]
[1672857943410,1.583,1263.5,1263.4,2.34981391]
[1672857943619,1.583,1263.5,1263.3,8.30404348]
[1672857944152,1.583,1263.5,1263.4,2.34981391]
[1672857944770,1.583,1263.5,1263.3,8.30404348]
[1672857944987,1.583,1263.5,1263.3,5.35711391]
[1672857945933,1.583,1263.5,1263.3,8.30404348]
[1672857946354,1.583,1263.5,1263.4,2.34981391]
[1672857946567,1.583,1263.5,1263.3,8.30404348]
[1672857946775,1.583,1263.5,1263.4,2.34981391]
[1672857947190,1.583,1263.5,1263.3,5.95422957]
[1672857947191,1.583,1263.5,1263.3,8.30404348]
[1672857947929,1.583,1263.5,1263.4,2.34981391]
[1672857948252,1.583,1263.5,1263.3,8.30404348]
[1672857948564,1.583,1263.5,1263.4,2.34981391]
[1672857949506,1.583,1263.5,1263.3,8.30404348]
[1672857950448,1.583,1263.5,1263.4,2.34981391]
[1672857950867,1.583,1263.5,1263.3,8.30404348]
[1672857951077,1.583,1263.5,1263.4,2.34981391]
[1672857952554,1.583,1263.5,1263.4,3.75251505]
[1672857954445,1.583,1263.5,1263.4,4.34963071]
[1672857954656,1.583,1263.5,1263.4,6.70840628]
[1672857955489,1.583,1263.5,1263.4,3.76147671]
[1672857955695,1.583,1263.5,1263.4,6.70840628]
[1672857955910,1.583,1263.5,1263.4,3.76147671]
[1672857956121,1.583,1263.5,1263.4,6.70840628]
[1672857956546,1.583,1263.5,1263.4,4.34963071]
[1672857957180,1.583,1263.5,1263.4,3.7603336]
[1672857960332,1.583,1263.5,1263.4,6.70726317]
[1672857960542,1.583,1263.5,1263.4,3.7603336]
[1672857960954,1.583,1263.5,1263.4,2.35763246]
[1672857961268,1.583,1263.5,1263.4,3.76038559]
[1672857961904,1.583,1263.5,1263.4,6.70731516]
[1672857964109,3.083,1263.5,1263.4,6.70731516]
[1672857964325,3.083,1263.5,1263.4,1.17873138]
[1672857964326,17.1633,1263.5,1263.4,1.17873138]
[1672857964641,17.1633,1263.5,1263.4,2.94682845]
[1672857965264,10.71316848,1263.5,1263.4,2.94682845]
[1672857965482,4.54286848,1263.5,1263.4,1.76809707]
[1672857965684,1.577,1263.5,1263.4,2.35763246]
[1672857966425,1.577,1263.5,1263.4,3.7603675]
[1672857966942,1.577,1263.5,1263.4,2.35763246]
[1672857967148,1.577,1263.5,1263.4,3.76036897]
[1672857967360,1.577,1263.5,1263.4,3.7603659]
[1672857968424,4.53586848,1263.6,1263.4,6.70729547]
[1672857968624,3.0073,1263.7,1263.5,8.93396301]
[1672857968625,2.96586848,1263.7,1263.5,8.93396301]
[1672857968832,2.96586848,1263.8,1263.6,5.3409437]
[1672857969154,2.96586848,1263.8,1263.7,2.94393453]
[1672857969896,2.96586848,1263.8,1263.7,1.17763259]
[1672857970100,2.96586848,1263.8,1263.7,2.94393453]
[1672857971567,2.96586848,1263.8,1263.7,1.17763259]
[1672857973670,4.53586848,1263.8,1263.7,1.17763259]
[1672857973880,9.04316848,1263.8,1263.6,2.94393453]
[1672857976616,6.03586848,1263.8,1263.6,2.94393453]
[1672857976934,6.0773,1263.8,1263.7,1.17763259]
[1672857977146,3.07,1263.8,1263.7,2.94393453]
[1672857977777,3.07,1263.8,1263.7,1.17763259]
[1672857978188,6.0773,1263.8,1263.7,1.17763259]
[1672857978400,9.04316848,1263.8,1263.7,1.17763259]
[1672857981037,9.04316848,1263.8,1263.6,2.94393453]
[1672857981237,3.07,1263.8,1263.7,1.17763259]
[1672857981876,6.0773,1263.8,1263.7,1.17763259]
[1672857982824,6.0773,1263.8,1263.6,2.94393453]
[1672857983028,6.0773,1263.8,1263.7,1.17763259]
[1672857983558,6.0783,1263.8,1263.6,1.17763259]
[1672857983870,11.078,1263.7,1263.6,1.17763259]
[1672857984078,11.078,1263.7,1263.5,1.17763259]
[1672857984290,9.492,1263.5,1263.3,2.94375617]
[1672857984603,12.4953,1263.4,1263.3,1.17745423]
[1672857985019,14.9953,1263.4,1263.3,1.17745423]
[1672857986818,7.0793,1263.4,1263.3,1.17745423]
[1672857987227,14.9953,1263.4,1263.3,1.17745423]
[1672857987762,7.0773,1263.4,1263.3,1.17745423]
[1672857990073,4.084,1263.4,1263.3,1.17745423]
[1672857992386,4.084,1263.4,1263.2,1.17745423]
[1672857992594,3.0073,1263.3,1263.2,1.17745423]
[1672857992812,3.0073,1263.3,1263.1,2.94375617]
[1672857993329,4.5823,1263.3,1263.1,2.94375617]
[1672857993741,4.5823,1263.3,1263.1,1.17745423]
[1672857995323,12.4983,1263.3,1263.0,2.94375617]
[1672857995526,3.0073,1263.1,1263.0,2.94375617]
[1672857995737,4.5843,1263.1,1263.0,2.94375617]
[1672857995948,4.5843,1263.1,1263.0,1.17745423]
[1672857996373,4.5843,1263.1,1263.0,2.94375617]
[1672857997113,4.5843,1263.1,1263.0,1.17745423]
[1672857997326,4.5843,1263.1,1262.9,2.94375617]
[1672857998057,4.5843,1263.1,1263.0,1.17745423]
[1672857998686,4.5843,1263.1,1262.9,2.94375617]
[1672857999307,4.5843,1263.1,1263.0,1.17745423]
[1672857999519,4.5843,1263.1,1262.9,2.94375617]
[1672857999730,4.5913,1263.1,1262.9,2.94375617]
[1672858000364,4.5913,1263.1,1263.0,1.17745423]